bitfinex/quotes_ETHUSD_20251127
["timestamp","ask_amount","ask_price","bid_price","bid_amount"]
[1764262668015,0.30938046,3023.9,3023.8,3.77559703]
[1764262668220,0.002,3024.2,3023.8,6.25087691]
[1764262668393,0.30941442,3024.1,3024.0,0.88601633]
[1764262668800,0.30941442,3024.1,3023.9,1.90468484]
[1764262668994,0.04333324,3024.2,3023.9,1.90468484]
[1764262669200,0.30940663,3024.1,3023.9,4.79544504]
[1764262669422,0.4586,3024.2,3023.9,5.88618678]
[1764262669727,0.30940899,3024.1,3023.9,5.88618678]
[1764262669924,0.4586,3024.2,3023.9,5.88618678]
[1764262670125,0.4586,3024.2,3024.1,0.88591035]
[1764262670330,0.76800391,3024.2,3024.1,0.88591035]
[1764262670634,1.25500391,3024.2,3024.1,0.88591035]
[1764262672524,5.02234644,3024.2,3024.1,0.88591035]
[1764262672704,0.0992,3024.1,3024.0,0.88591035]
[1764262672907,0.90653852,3024.1,3024.0,0.88591035]
[1764262673105,1.57623852,3024.1,3024.0,0.88591035]
[1764262673402,1.57623852,3024.1,3023.8,0.88691035]
[1764262673621,0.1125,3023.9,3023.8,0.88691035]
[1764262673823,0.42190391,3023.9,3023.8,0.88691035]
[1764262674030,0.87850391,3023.9,3023.8,0.88691035]
[1764262674231,0.97770391,3023.9,3023.8,0.001]
[1764262674538,1.01904125,3023.9,3023.8,0.001]
[1764262674700,1.25932815,3023.9,3023.8,0.001]
[1764262675331,0.70352815,3023.9,3023.8,0.001]
[1764262675630,0.91984125,3023.9,3023.8,0.001]
[1764262681526,0.91904125,3023.9,3023.8,0.001]
[1764262682847,4.32522891,3023.9,3023.8,0.001]
[1764262685926,4.45774088,3023.9,3023.8,0.001]
[1764262686548,5.18333499,3023.9,3023.8,0.001]
[1764262686748,0.405504,3023.6,3023.4,0.001]
[1764262686953,5.05462002,3023.5,3023.4,0.001]
[1764262687157,8.36204518,3023.5,3023.4,0.001]
[1764262687449,8.90983937,3023.5,3023.4,0.001]
[1764262687618,10.13155547,3023.5,3023.4,0.001]
[1764262688720,6.57607628,3023.5,3023.4,0.001]
[1764262689045,6.61741909,3023.5,3023.4,0.001]
[1764262689433,6.44353928,3023.5,3023.4,0.001]
[1764262689842,6.27588209,3023.5,3023.4,0.001]
[1764262690043,6.48488209,3023.5,3023.4,0.001]
[1764262691418,5.92908209,3023.5,3023.4,0.001]
[1764262691619,6.52288209,3023.5,3023.4,0.001]
[1764262692114,1.57246282,3023.5,3023.4,0.4756]
[1764262692420,0.30940391,3023.5,3023.4,0.9404]
[1764262692651,0.002,3024.2,3023.4,1.82657275]
[1764262692845,0.30895332,3024.1,3023.7,0.4746]
[1764262693034,0.002,3024.2,3023.7,0.4746]
[1764262693035,0.35028929,3024.0,3023.7,0.4746]
[1764262693346,0.30895332,3023.9,3023.7,0.4746]
[1764262693551,0.04333324,3024.2,3023.9,0.4746]
[1764262693849,0.30892587,3024.1,3023.9,0.4746]
[1764262694058,0.30892587,3024.0,3023.6,0.88617275]
[1764262694260,0.04133597,3024.0,3023.6,4.400078]
[1764262694426,0.04133597,3024.0,3023.9,0.4746]
[1764262694628,0.3502679,3024.0,3023.9,0.4746]
[1764262695359,0.30893193,3024.0,3023.9,0.9679]
[1764262695546,0.04333324,3024.2,3024.0,3.3068783]
[1764262695547,0.002,3024.2,3024.0,3.3068783]
[1764262695747,0.002,3024.2,3024.1,0.488]
[1764262695748,0.04333324,3024.2,3024.1,0.488]
[1764262696150,0.04333324,3024.2,3024.1,0.9813]
[1764262696330,0.002,3024.2,3024.1,0.9813]
[1764262696527,0.002,3024.2,3024.1,1.86747275]
[1764262699062,0.002,3024.2,3024.1,5.1742417]
[1764262699267,0.002,3024.2,3024.1,6.18987422]
[1764262700269,0.002,3024.2,3024.1,5.30570681]
[1764262705246,0.0012,3024.2,3024.1,6.18938221]
[1764262708181,0.0012,3024.2,3024.1,6.39838221]
[1764262709152,0.0012,3024.2,3024.1,3.09161326]
[1764262709552,0.0012,3024.2,3024.1,6.39838221]
[1764262712574,0.0012,3024.2,3024.1,9.63075505]
[1764262712774,0.0012,3024.2,3024.1,6.34030092]
[1764262712984,0.0012,3024.2,3024.1,6.47273305]
[1764262715390,0.0012,3024.2,3024.1,6.37273305]
[1764262717072,0.0012,3024.2,3024.1,8.24124695]
[1764262719266,0.0012,3024.2,3024.1,6.47273305]
[1764262719799,0.0012,3024.2,3024.1,6.87823705]
[1764262720774,0.0012,3024.2,3024.1,10.01060989]
[1764262722868,0.0012,3024.2,3024.1,12.37044926]
[1764262723195,0.0012,3024.2,3024.1,12.47044926]
[1764262723384,0.0012,3024.2,3024.1,9.23807642]
[1764262723895,0.0012,3024.2,3024.1,6.77823705]
[1764262724480,0.0012,3024.2,3024.1,6.87823705]
[1764262728788,0.0012,3024.2,3024.1,6.77823705]
[1764262729118,0.0004,3024.2,3024.1,6.87823705]
[1764262731893,0.0004,3024.2,3024.1,6.07593705]
[1764262732096,0.4695,3024.2,3024.1,0.13243213]
[1764262732305,0.9663,3024.2,3024.1,1.98527814]
[1764262734002,0.9663,3024.2,3024.1,1.77627814]
[1764262734715,0.9663,3024.2,3024.0,1.77627814]
[1764262734716,4.27295961,3024.2,3024.0,1.77627814]
[1764262734911,1.00709596,3024.1,3024.0,1.77727814]
[1764262735719,0.5796,3024.1,3024.0,1.77727814]
[1764262736090,0.5796,3024.1,3024.0,0.001]
[1764262740327,3.88636895,3024.1,3024.0,0.001]
[1764262740500,0.5796,3024.1,3024.0,0.001]
[1764262740704,0.5796,3024.1,3024.0,1.18813557]
[1764262741423,0.0828,3024.1,3024.0,1.18813557]
[1764262742006,0.5796,3024.1,3024.0,1.18813557]
[1764262743613,0.0828,3024.1,3024.0,4.49501387]
[1764262744811,0.0004,3024.2,3024.0,10.29186472]
[1764262745028,0.0004,3024.2,3024.1,1.40589411]
[1764262745339,0.0004,3024.2,3024.1,1.87759411]
[1764262745701,0.0004,3024.2,3024.1,2.01003501]
[1764262748035,0.0004,3024.2,3024.1,5.31680396]
[1764262748333,0.0004,3024.2,3024.1,6.8350138]
[1764262752499,0.0004,3024.2,3024.1,6.3633138]
[1764262752825,0.002,3024.3,3024.1,6.3633138]
[1764262752826,0.0016,3024.3,3024.2,1.450804]
[1764262752998,0.0016,3024.3,3024.2,7.78304272]
[1764262754440,0.0016,3024.3,3024.2,11.08970233]
[1764262754747,0.0016,3024.3,3024.2,13.14188536]
[1764262755745,0.0016,3024.3,3024.2,10.76761359]
[1764262756038,0.0016,3024.3,3024.2,10.90003081]
[1764262756203,0.0016,3024.3,3024.2,10.41443081]
[1764262756406,0.0016,3024.3,3024.2,10.28201359]
[1764262756612,0.0016,3024.3,3024.2,10.75821359]
[1764262758341,0.0016,3024.3,3024.2,10.65821359]
[1764262758920,0.0016,3024.3,3024.2,6.94964075]
[1764262759138,0.0016,3024.3,3024.2,10.28201359]
[1764262760344,0.0016,3024.3,3024.2,10.18201359]
[1764262760737,0.0016,3024.3,3024.2,10.65821359]
[1764262761329,0.9471,3024.3,3024.2,6.08443675]
[1764262761528,0.9471,3024.3,3024.2,4.24125372]
[1764262762144,0.4794,3024.3,3024.2,4.24125372]
[1764262762519,0.0016,3024.3,3024.2,4.70905372]
[1764262765340,0.0016,3024.3,3024.2,5.18525372]
[1764262765549,0.0016,3024.3,3024.2,6.69100686]
[1764262767443,0.0016,3024.3,3024.2,6.21480686]
[1764262767759,0.0016,3024.3,3024.2,6.69100686]
[1764262770677,0.0016,3024.3,3024.2,10.3288837]
[1764262771057,0.0016,3024.3,3024.2,12.22507045]
[1764262773283,0.0016,3024.3,3024.2,9.8526837]
[1764262773479,0.9471,3024.3,3024.2,11.76065659]
[1764262773777,0.9471,3024.3,3024.2,1.78256185]
[1764262776483,0.9463,3024.3,3024.2,1.78256185]
[1764262777379,0.9463,3024.3,3024.1,5.08932094]
[1764262777563,0.5787,3024.2,3024.1,5.08932094]
[1764262778152,0.5787,3024.2,3024.1,1.78256185]
[1764262779183,0.0008,3024.3,3024.1,5.0893308]
[1764262779484,0.4778,3024.2,3024.1,5.0893308]
[1764262779856,0.9455,3024.2,3024.1,5.0893308]
[1764262780751,0.9455,3024.2,3024.1,1.78256185]
[1764262780989,0.9455,3024.2,3024.1,5.0893308]
[1764262785894,0.9414,3024.2,3024.1,5.0893308]
[1764262788080,0.4778,3024.2,3024.1,5.0893308]
[1764262788884,0.9414,3024.2,3024.1,5.0893308]
[1764262792086,0.9414,3024.2,3024.1,1.78256185]
[1764262793160,0.9414,3024.2,3024.1,1.18864124]
[1764262793361,1.37639054,3024.2,3024.1,1.18864124]
[1764262793773,1.68604338,3024.2,3024.1,1.18864124]
[1764262794891,0.0992,3024.1,3024.0,0.001]
[1764262795092,4.29422179,3024.1,3024.0,0.001]
[1764262795599,0.98745284,3024.1,3024.0,0.001]
[1764262795810,4.29422179,3024.1,3024.0,0.001]
[1764262795975,0.98745284,3024.1,3024.0,0.001]
[1764262796181,4.74460561,3024.1,3024.0,0.001]
[1764262798079,4.78594022,3024.1,3024.0,0.001]
[1764262799592,1.47917127,3024.1,3024.0,0.001]
[1764262800519,4.78594022,3024.1,3024.0,0.001]
[1764262801510,0.91637127,3024.1,3024.0,0.001]
[1764262801710,4.68674022,3024.1,3024.0,0.001]
[1764262802179,4.78594022,3024.1,3024.0,0.001]
[1764262806828,1.26497127,3024.1,3024.0,0.001]
[1764262806982,0.81458745,3024.1,3024.0,0.001]
[1764262807189,4.5858564,3024.1,3024.0,0.001]
[1764262807694,4.6850564,3024.1,3024.0,0.001]
[1764262807897,4.6850564,3024.1,3023.7,0.001]
[1764262807898,0.0992,3023.8,3023.7,0.001]
[1764262808215,0.0992,3023.8,3023.6,0.001]
[1764262808216,0.82479411,3023.7,3023.6,0.001]
[1764262808398,2.36259673,3023.7,3023.6,0.001]
[1764262808597,2.95961661,3023.7,3023.6,0.001]
[1764262809712,2.10150262,3023.7,3023.6,0.001]
[1764262809919,1.54025284,3023.7,3023.6,0.001]
[1764262810086,1.33125284,3023.7,3023.6,0.001]
[1764262810638,0.77185284,3023.7,3023.6,0.001]
[1764262811405,1.26685284,3023.7,3023.6,0.001]
[1764262811606,1.40739292,3023.7,3023.6,0.001]
[1764262812232,1.89813286,3023.7,3023.6,0.001]
[1764262812428,1.40739292,3023.7,3023.6,0.001]
[1764262812635,0.4622,3023.7,3023.6,0.001]
[1764262812836,0.9572,3023.7,3023.6,0.001]
[1764262813044,0.99854008,3023.7,3023.6,0.001]
[1764262814129,0.04134008,3023.7,3023.6,0.4605]
[1764262814319,3.30702518,3023.9,3023.6,0.4605]
[1764262814320,0.04133871,3023.8,3023.6,0.4605]
[1764262814520,0.488,3023.7,3023.6,0.001]
[1764262815040,1.0455,3023.7,3023.6,0.001]
[1764262815415,0.0992,3023.7,3023.6,0.4886]
[1764262815631,0.04133597,3024.0,3023.6,0.4886]
[1764262815831,0.6,3023.7,3023.6,0.001]
[1764262816247,1.09964008,3023.7,3023.6,0.001]
[1764262816433,4.40684648,3023.7,3023.6,0.001]
[1764262816630,4.71590949,3023.7,3023.6,0.001]
[1764262817125,5.62731999,3023.7,3023.6,0.001]
[1764262817306,4.81510949,3023.7,3023.6,0.001]
[1764262819657,3.65760949,3023.7,3023.6,0.4886]
[1764262820060,3.65760949,3023.7,3023.6,0.001]
[1764262820061,4.60390949,3023.7,3023.6,0.001]
[1764262820228,3.65760949,3023.7,3023.6,0.001]
[1764262820428,4.37520061,3023.7,3023.6,0.4886]
[1764262822066,0.35040309,3023.7,3023.6,0.4886]
[1764262822365,0.30906301,3023.7,3023.6,0.9621]
[1764262822534,3.44931637,3024.1,3023.6,0.9621]
[1764262822734,0.30943191,3024.0,3023.7,0.4735]
[1764262822935,0.35076925,3023.9,3023.7,0.4735]
[1764262823136,0.30943191,3023.8,3023.7,0.4735]
[1764262823536,0.30943191,3023.8,3023.7,0.9611]
[1764262824269,0.30943191,3023.8,3023.7,0.4876]
[1764262824633,0.40863191,3023.8,3023.7,0.4876]
[1764262826604,0.40885053,3023.8,3023.7,0.4876]
[1764262827999,0.89685053,3023.8,3023.6,0.001]
[1764262828207,0.35099061,3023.7,3023.6,0.001]
[1764262828384,0.46299061,3023.7,3023.6,0.001]
[1764262828903,0.35099061,3023.7,3023.6,0.4886]
[1764262830815,0.30965053,3023.7,3023.6,0.9621]
[1764262832118,0.79765053,3023.7,3023.6,0.001]
[1764262832320,0.35099061,3023.7,3023.6,0.001]
[1764262832510,4.09094845,3023.7,3023.6,0.001]
[1764262832911,4.57894845,3023.7,3023.6,0.001]
[1764262833108,1.27174205,3023.7,3023.6,0.001]
[1764262833320,1.27180156,3023.7,3023.6,0.001]
[1764262833618,0.78380156,3023.7,3023.6,0.001]
[1764262834093,4.09100796,3023.7,3023.6,0.001]
[1764262834300,0.78380156,3023.7,3023.6,0.001]
[1764262834709,0.35105012,3023.7,3023.6,0.001]
[1764262836340,3.65825652,3023.7,3023.6,0.001]
[1764262836520,4.14625652,3023.7,3023.6,0.001]
[1764262837019,4.14825652,3023.7,3023.6,0.001]
[1764262837327,4.70575652,3023.7,3023.6,0.001]
[1764262838520,2.23192577,3023.7,3023.6,0.001]
[1764262838703,1.77362577,3023.7,3023.6,0.001]
[1764262839102,5.08083217,3023.7,3023.6,0.001]
[1764262839300,5.53913217,3023.7,3023.6,0.001]
[1764262839496,8.77457082,3023.7,3023.6,0.001]
[1764262839700,8.73323074,3023.7,3023.6,0.001]
[1764262841617,9.45882485,3023.7,3023.6,0.001]
[1764262844231,10.35958454,3023.7,3023.6,0.001]
[1764262844538,9.99685883,3023.7,3023.6,0.001]
[1764262845428,13.48085883,3023.7,3023.6,0.001]
[1764262845625,9.99685883,3023.7,3023.6,0.001]
[1764262845939,3.484,3023.5,3022.4,0.001]
[1764262846140,8.15597541,3023.2,3022.4,0.001]
[1764262846436,11.94968545,3023.2,3022.4,0.001]
[1764262846613,15.75213882,3023.2,3022.4,0.001]
[1764262846806,15.88470437,3023.2,3022.4,0.001]
[1764262847009,14.58940102,3023.2,3022.4,0.001]
[1764262847633,14.58905768,3023.2,3022.4,0.001]
[1764262848744,17.82449633,3023.2,3022.4,0.001]
[1764262849039,14.58905768,3023.2,3022.4,0.001]
[1764262851412,17.82449633,3023.2,3022.4,0.001]
[1764262851927,11.10505768,3023.2,3022.4,0.001]
[1764262853319,11.10505768,3023.2,3022.7,0.001]
[1764262855239,17.48505768,3023.2,3022.7,0.001]
[1764262857351,17.07955368,3023.2,3022.7,0.001]
[1764262857516,16.79385368,3023.2,3022.7,0.001]
[1764262857710,17.28855368,3023.2,3022.7,0.001]
[1764262859845,16.79385368,3023.2,3022.7,0.474]
[1764262860416,17.28855368,3023.2,3022.7,0.474]
[1764262860643,16.79385368,3023.2,3022.7,0.474]
[1764262860946,16.33905368,3023.2,3023.1,0.4796]
[1764262861130,16.33905368,3023.2,3023.1,0.001]
[1764262861334,16.79625368,3023.2,3023.1,0.001]
[1764262862223,16.66368813,3023.2,3023.1,0.001]
[1764262863442,17.15838813,3023.2,3023.1,0.001]
[1764262863614,16.10728813,3023.2,3023.1,0.001]
[1764262863819,16.20648813,3023.2,3023.1,0.4796]
[1764262864015,0.3093667,3023.2,3023.1,1.1425]
[1764262864915,3.61712007,3023.2,3023.1,1.1425]
[1764262865117,3.71632007,3023.2,3023.1,1.1425]
[1764262866148,3.75766698,3023.2,3023.1,0.4796]
[1764262870346,3.75966698,3023.2,3023.1,0.4796]
[1764262871759,3.75966698,3023.2,3023.1,0.6695]
[1764262871959,0.3113667,3023.2,3023.1,1.1236]
[1764262872141,0.3113667,3023.2,3023.1,1.56696027]
[1764262873673,0.3113667,3023.2,3023.1,4.87482305]
[1764262873871,0.002,3023.2,3023.1,5.08382305]
[1764262874030,0.002,3023.2,3023.1,5.80941716]
[1764262874228,0.002,3023.2,3023.1,6.31492116]
[1764262874634,0.002,3023.2,3023.1,6.87900837]
[1764262874869,0.002,3023.2,3023.1,6.97900837]
[1764262875160,0.002,3023.6,3023.5,4.46653676]
[1764262875333,0.002,3023.6,3023.5,5.39549044]
[1764262875532,0.002,3023.6,3023.5,5.88359044]
[1764262875732,0.002,3023.6,3023.5,9.32345299]
[1764262879364,0.002,3023.6,3023.5,11.09152511]
[1764262880568,0.002,3023.6,3023.5,11.30052511]
[1764262881570,0.002,3023.6,3023.5,2.59497]
[1764262881780,0.002,3023.6,3023.5,4.72447884]
[1764262881944,0.002,3023.6,3023.5,9.0910156]
[1764262882144,0.002,3023.6,3023.5,10.36893192]
[1764262882874,0.002,3023.6,3023.5,9.1910156]
[1764262883476,0.002,3023.6,3023.5,10.36819411]
[1764262883669,0.002,3023.6,3023.5,10.26819411]
[1764262883871,0.002,3023.6,3023.5,10.36819411]
[1764262884269,0.002,3023.6,3023.5,9.1910156]
[1764262884443,0.002,3023.6,3023.5,9.0910156]
[1764262884976,0.002,3023.6,3023.5,9.1910156]
[1764262887059,0.002,3023.6,3023.5,10.85663087]
[1764262887268,0.002,3023.6,3023.5,9.1910156]
[1764262887647,0.002,3023.6,3023.5,10.95663087]
[1764262888675,0.002,3023.6,3023.5,10.85663087]
[1764262888880,0.002,3023.6,3023.5,9.1910156]
[1764262891483,0.002,3023.6,3023.5,11.55582791]
[1764262892753,0.002,3023.7,3023.6,1.23109811]
[1764262893055,0.002,3023.7,3023.6,6.53064271]
[1764262893683,0.002,3024.0,3023.9,0.505504]
[1764262893980,0.002,3024.0,3023.9,8.39327541]
[1764262894276,0.002,3024.0,3023.9,5.40848577]
[1764262894478,0.002,3024.0,3023.9,13.95521706]
[1764262894679,0.002,3024.0,3023.9,13.9470116]
[1764262894852,0.002,3024.0,3023.9,10.81157295]
[1764262895056,0.002,3024.0,3023.9,10.71157295]
[1764262895372,0.002,3024.0,3023.9,10.81157295]
[1764262895572,0.002,3024.0,3023.9,10.71157295]
[1764262895771,0.002,3024.0,3023.9,10.81157295]
[1764262896078,0.002,3024.0,3023.9,10.01447295]
[1764262896286,0.002,3024.0,3023.9,5.51551853]
[1764262896576,0.002,3024.0,3023.9,6.45011264]
[1764262896954,0.002,3024.0,3023.9,8.03473983]
[1764262897178,0.002,3024.0,3023.9,6.85561664]
[1764262897379,0.002,3024.0,3023.9,7.30914572]
[1764262897880,0.002,3024.0,3023.9,8.03473983]
[1764262898463,0.9293,3024.0,3023.9,0.72559411]
[1764262898666,0.9293,3024.0,3023.9,0.93459411]
[1764262898995,0.002,3024.0,3023.9,4.72388177]
[1764262899197,0.002,3024.0,3023.9,5.90300496]
[1764262899969,0.002,3024.0,3023.9,2.5960173]
[1764262900378,0.002,3024.0,3023.9,4.72388177]
[1764262900693,0.002,3024.0,3023.9,5.70378453]
[1764262901195,0.9724,3024.0,3023.9,1.90803154]
[1764262901394,0.9724,3024.0,3023.9,2.11703154]
[1764262902194,0.9724,3024.0,3023.9,1.39143743]
[1764262902400,0.0992,3023.9,3023.8,1.18473363]
[1764262902561,0.5748,3023.9,3023.7,1.39373363]
[1764262902970,0.687,3023.8,3023.7,1.18473363]
[1764262903175,0.687,3023.8,3023.6,1.18473363]
[1764262903458,0.0992,3023.6,3023.5,11.18473363]
[1764262903662,0.1756,3023.6,3023.5,10.0]
[1764262903881,0.6512,3023.6,3023.5,10.0]
[1764262904397,4.26790064,3023.6,3023.5,10.001]
[1764262904601,5.04462512,3023.6,3023.5,10.001]
[1764262906570,4.26790064,3023.6,3023.5,10.001]
[1764262909893,4.26790064,3023.6,3023.5,0.001]
[1764262913184,3.95851578,3023.6,3023.5,0.001]
[1764262913489,3.99985722,3023.6,3023.5,0.001]
[1764262920020,4.30764165,3023.6,3023.5,0.001]
[1764262920315,6.15006243,3023.6,3023.5,0.001]
[1764262922288,6.55556643,3023.6,3023.5,0.001]
[1764262922494,1.13109811,3023.5,3023.2,0.001]
[1764262922814,4.87311318,3023.3,3023.2,0.001]
[1764262923059,5.38989761,3023.3,3023.2,0.001]
[1764262923322,6.45618179,3023.3,3023.2,0.001]
[1764262923785,9.80517129,3023.3,3023.2,0.001]
[1764262923991,9.76382575,3023.3,3023.2,0.001]
[1764262924224,0.72559411,3023.2,3023.1,0.001]
[1764262924407,1.68867854,3023.2,3023.1,0.001]
[1764262924586,3.2855694,3023.2,3023.1,0.001]
[1764262924996,3.32691631,3023.2,3023.1,0.001]
[1764262926623,6.63466968,3023.2,3023.1,0.001]
[1764262927811,6.53546968,3023.2,3023.1,0.001]
[1764262928124,6.63466968,3023.2,3023.1,0.001]
[1764262928296,6.76723172,3023.2,3023.1,0.001]
[1764262928623,6.93488481,3023.2,3023.1,0.001]
[1764262929014,6.72588481,3023.2,3023.1,0.001]
[1764262929210,6.93488481,3023.2,3023.1,0.001]
[1764262930642,7.34038881,3023.2,3023.1,0.001]
[1764262933528,7.34038881,3023.2,3022.1,0.1745]
[1764262933529,0.504704,3022.9,3022.1,0.001]
[1764262933723,4.14935452,3022.9,3022.1,0.001]
[1764262933897,5.77784863,3022.9,3022.1,0.001]
[1764262934098,5.91041902,3022.9,3022.1,0.001]
[1764262934430,9.21850066,3022.9,3022.1,0.001]
[1764262934624,10.42366508,3022.9,3022.1,0.001]
[1764262935207,10.63266508,3022.9,3022.1,0.001]
[1764262937338,10.32488065,3022.9,3022.1,0.001]
[1764262937519,10.63314255,3022.9,3022.1,0.001]
[1764262943349,0.0992,3022.8,3022.1,0.001]
[1764262943509,8.09809846,3022.8,3022.1,0.001]
[1764262943706,8.05674608,3022.8,3022.1,0.001]
[1764262944041,8.18932789,3022.8,3022.1,0.001]
[1764262944408,11.67632789,3022.8,3022.1,0.001]
[1764262945431,8.18932789,3022.8,3022.1,0.001]
[1764262946437,11.49751897,3022.8,3022.1,0.001]
[1764262947335,12.11202297,3022.8,3022.1,0.001]
[1764262950635,12.11202297,3022.8,3022.1,0.1745]
[1764262951739,12.11202297,3022.8,3022.1,0.001]
[1764262954844,12.11202297,3022.8,3022.6,0.001]
[1764262956630,15.35164461,3022.8,3022.6,0.001]
[1764262957526,10.68633716,3022.8,3022.7,0.4974]
[1764262957731,13.54427462,3022.8,3022.7,0.4974]
[1764262959047,0.3082619,3022.8,3022.7,0.994]
[1764262959252,3.65780536,3022.8,3022.7,0.994]
[1764262959860,0.3082619,3022.8,3022.7,0.994]
[1764262960060,0.3082619,3022.8,3022.7,1.75528645]
[1764262960536,0.3082619,3022.8,3022.7,0.994]
[1764262963270,0.002,3022.9,3022.7,0.994]
[1764262963471,3.31008164,3022.9,3022.8,0.9507]
[1764262963642,3.61949854,3022.9,3022.8,0.9507]
[1764262963846,6.9996712,3022.9,3022.8,0.467]
[1764262964059,0.0992,3022.8,3022.7,0.001]
[1764262964239,0.44996928,3022.8,3022.7,0.001]
[1764262964442,0.44996928,3022.8,3022.7,0.468]
[1764262964759,0.44996928,3022.8,3022.7,0.9517]
[1764262965179,0.44996928,3022.8,3022.7,0.468]
[1764262965973,4.5220686,3022.8,3022.7,0.468]
[1764262966541,4.5220686,3022.8,3022.7,0.9517]
[1764262966940,4.5220686,3022.8,3022.7,0.468]
[1764262967867,4.5220686,3022.8,3022.7,0.001]
[1764262968269,4.9746686,3022.8,3022.7,0.001]
[1764262968870,4.5220686,3022.8,3022.7,0.001]
[1764262969276,4.9746686,3022.8,3022.7,0.001]
[1764262969451,5.4545686,3022.8,3022.7,0.001]
[1764262969847,4.9746686,3022.8,3022.7,0.001]
[1764262970269,4.5220686,3022.8,3022.7,0.001]
[1764262970572,4.5220686,3022.8,3022.7,0.468]
[1764262972874,4.5240686,3022.8,3022.7,0.468]
[1764262976660,4.9766686,3022.8,3022.7,0.001]
[1764262977397,0.45196928,3022.8,3022.7,0.468]
[1764262977549,0.3114169,3022.8,3022.7,0.468]
[1764262977754,3.71880798,3022.8,3022.7,0.468]
[1764262977951,3.76016036,3022.8,3022.7,0.468]
[1764262978192,3.66096036,3022.8,3022.7,0.9517]
[1764262978388,3.76016036,3022.8,3022.7,0.001]
[1764262978552,4.21276036,3022.8,3022.7,0.001]
[1764262978957,4.53334535,3022.8,3022.7,0.001]
[1764262979381,4.98594535,3022.8,3022.7,0.001]
[1764262980974,5.46584535,3022.8,3022.7,0.001]
[1764262981179,6.15008708,3022.8,3022.7,0.001]
[1764262981357,6.32400062,3022.8,3022.7,0.001]
[1764262981558,6.72950462,3022.8,3022.7,0.001]
[1764262981763,6.68815224,3022.8,3022.7,0.001]
[1764262986087,1.23029811,3022.5,3022.4,0.001]
[1764262986287,2.7198715,3022.5,3022.4,0.001]
[1764262987106,0.0992,3021.5,3021.4,0.4499]
[1764262987263,0.4086169,3021.5,3021.4,0.4499]
[1764262987465,0.4086169,3021.5,3021.4,0.9171]
[1764262989306,3.71823132,3021.5,3021.4,0.9171]
[1764262990208,3.71823132,3021.5,3021.4,0.9181]
[1764262993601,3.61903132,3021.5,3021.4,0.9181]
[1764262993967,3.7596015,3021.5,3021.4,0.9181]
[1764262996608,0.35078708,3021.5,3021.4,0.9181]
[1764262996814,3.51799259,3022.1,3021.4,0.9181]
[1764262997114,0.30858515,3022.0,3021.5,0.4718]
[1764262997312,3.30899016,3022.1,3021.6,0.3782524]
[1764262997512,0.30864039,3022.0,3021.5,0.4718]
[1764262997685,3.30899016,3022.1,3022.0,0.471]
[1764262997886,3.65888773,3022.1,3022.0,0.471]
[1764262998211,3.65888773,3022.1,3022.0,0.9428]
[1764263001098,3.75808773,3022.1,3022.0,0.9428]
[1764263004891,3.75808773,3022.1,3022.0,0.471]
[1764263005091,3.75808773,3022.1,3022.0,0.9428]
[1764263005788,3.65888773,3022.1,3022.0,0.471]
[1764263005988,3.75808773,3022.1,3022.0,0.9428]
[1764263007826,3.76008773,3022.1,3022.0,0.9428]
[1764263008633,0.0992,3021.9,3021.8,0.4718]
[1764263008840,0.0992,3021.9,3021.5,0.209]
[1764263008841,0.0992,3021.8,3021.6,0.4718]
[1764263009335,0.0992,3021.8,3021.7,0.471]
[1764263009543,0.4087287,3021.8,3021.7,0.9428]
[1764263011747,3.71801455,3021.8,3021.7,0.471]
[1764263012045,0.0992,3021.5,3021.4,0.001]
[1764263012253,0.4087287,3021.5,3021.4,0.001]
[1764263012461,0.4087287,3021.5,3021.4,0.472]
[1764263012756,1.3550287,3021.5,3021.4,0.001]
[1764263012907,1.83539373,3021.5,3021.4,0.001]
[1764263013617,1.83539373,3021.5,3021.4,0.472]
[1764263013618,4.19870815,3021.5,3021.4,0.472]
[1764263015336,4.19870815,3021.5,3021.4,0.9438]
[1764263015337,3.71834312,3021.5,3021.4,0.9438]
[1764263017941,3.71834312,3021.5,3021.4,0.472]
[1764263018326,3.71834312,3021.5,3021.4,0.9438]
[1764263018527,3.61914312,3021.5,3021.4,0.9438]
[1764263020628,3.71834312,3021.5,3021.4,0.4759]
[1764263020832,3.61914312,3021.5,3021.4,0.4759]
[1764263021032,3.61914312,3021.5,3021.4,0.9558]
[1764263021273,0.3095287,3021.5,3021.4,0.9558]
[1764263021422,0.002,3022.1,3021.4,8.21081362]
[1764263021760,0.30955219,3022.0,3021.5,0.4799]
[1764263021928,0.30955219,3021.9,3021.5,3.789465]
[1764263022127,0.30955219,3021.8,3021.5,0.4799]
[1764263022440,3.31095734,3022.1,3022.0,0.4749]
[1764263022647,0.31154967,3022.1,3022.0,0.4749]
[1764263022846,0.31154967,3022.1,3022.0,0.9548]
[1764263023518,0.002,3022.5,3022.0,2.72277267]
[1764263023718,0.002,3022.5,3022.4,0.6034]
[1764263023917,0.002,3022.5,3022.4,1.0833]
[1764263024862,0.002,3022.5,3022.4,4.3919289]
[1764263025064,0.002,3022.5,3022.4,1.0833]
[1764263026633,0.002,3022.5,3022.4,4.3919289]
[1764263026831,0.002,3022.5,3022.4,5.16200579]
[1764263027131,0.002,3022.5,3022.4,10.81442137]
[1764263027331,0.002,3022.5,3022.4,9.0464487]
[1764263027531,0.002,3022.5,3022.4,5.8875999]
[1764263028459,0.002,3022.5,3022.4,7.07178934]
[1764263029231,0.002,3022.5,3022.4,5.8875999]
[1764263032264,0.002,3022.5,3022.4,1.37347689]
[1764263032486,0.002,3022.5,3022.4,5.37100579]
[1764263038703,0.002,3022.5,3022.4,9.6609527]
[1764263039275,0.002,3022.5,3022.4,6.6021039]